[Event "Saint Louis Norm Congress-GM 2022"]
[Site "Saint Louis"]
[Date "2022.05.19"]
[Round "1.1"]
[White "Brodsky, David"]
[Black "Stearman, Josiah"]
[Result "1-0"]
[ECO "B90"]
[WhiteElo "2484"]
[BlackElo "2375"]
[Annotator "TA"]
[PlyCount "135"]
[EventDate "2022.05.20"]
[EventType "tourn"]
[EventCountry "USA"]
[SourceTitle "playchess.com"]
[Source "ChessBase"]
[SourceQuality "1"]
[TimeControl "5400+30"]

{[%evp 9,135,20,22,16,37,25,36,27,55,55,49,54,89,39,70,68,60,2,10,17,24,0,11,-30,-22,-42,-29,-38,-45,-58,-43,-34,0,0,0,-3,0,-10,0,0,7,0,0,10,0,15,114,143,130,112,164,174,181,188,183,145,163,186,175,195,189,172,174,175,178,160,246,218,265,249,339,337,432,422,573,562,564,526,373,368,372,353,364,356,350,349,345,334,576,657,501,489,622,620,597,596,507,469,626,589,729,719,783,655,846,825,916,767,745,687,1079,1116,1391,1120,2289,1276,2124,2014,1927,1732,29984,29985,29982,29983,29988,29989,29990,29991]} 1. e4 {[%emt 0:00:01]} c5 {[%emt 0:00:06]} 2. Nf3 {[%emt 0:00:12]} d6 {[%emt 0:00:07]} 3. d4 {[%emt 0:01:43]} cxd4 {[%emt 0:00:07]} 4. Nxd4 {[%emt 0:00:03]} Nf6 {[%emt 0:00:08]} 5. Nc3 {[%emt 0:00:02]} a6 {[%emt 0:00:06]} 6. Qd3 {[%emt 0:01:30] B90: Sicilian Najdorf: Unusual White 6th moves, 6 Be3 Ng4 and 6 Be3 e5.} e5 {[%emt 0:02:49]} 7. Nf5 {[%emt 0:02:42]} Bxf5 {[%emt 0:13:09]} 8. exf5 {[%emt 0:00:10] White is slightly better.} h6 {[%emt 0:18:31]} 9. Be3 {[%emt 0:11:11]} Nc6 {[%emt 0:22:51]} 10. O-O-O {[%emt 0:01:33] [#]} Nb4 $146 {[%emt 0:00:07]} ({Predecessor:} 10... Qa5 11. Kb1 Rd8 12. Nd5 Nxd5 13. Qxd5 Qxd5 14. Rxd5 Ne7 15. Rd2 Nxf5 16. Bb6 Rc8 {½-½ (29) Maltsevskaya,A (2333)-Garifullina,L (2330) Sochi 2019}) 11. Qd2 {[%emt 0:07:38]} ({White should play} 11. Qe2 $16) 11... Rc8 {[%emt 0:01:30] And now ...Qa5 would win.} 12. Kb1 $1 {[%emt 0:07:21]} d5 {[%emt 0:00:11]} 13. f4 {[%emt 0:20:31]} (13. a3 $14) 13... Qa5 $1 $11 {[%emt 0:06:53]} 14. a3 {[%emt 0:01:26]} (14. fxe5 $2 Ne4 15. a3 Nxd2+ $19) 14... d4 {[%emt 0:02:27]} 15. Bxd4 {[%emt 0:07:31]} exd4 {[%emt 0:00:18]} 16. Qe2+ {[%emt 0:00:14]} (16. Qxd4 $2 Nc6 17. Qa4 Qxa4 18. Nxa4 Rd8 $19) 16... Be7 {[%emt 0:00:08]} 17. axb4 {[%emt 0:00:06]} Qxb4 {[%emt 0:00:17]} 18. Na2 {[%emt 0:00:55][%cal Bc3a2,Ba2c1,Bc1b3,Bb3c5][%mdl 32]} Qc5 {[%emt 0:00:13]} 19. Nc1 {[%emt 0:03:20]} O-O {[%emt 0:06:24][%cal Oc5c6]} 20. Nb3 {[%emt 0:03:44]} Qxf5 {[%emt 0:00:45]} 21. Rxd4 {[%emt 0:00:56]} Rfe8 {[%emt 0:05:49][%cal Oe7b4]} 22. Qd3 {[%emt 0:00:51]} Qe6 {[%emt 0:00:18] Black wants to play ...Ng4.} 23. g3 $1 {[%emt 0:04:05]} Bc5 {[%emt 0:05:41]} 24. Nxc5 {[%emt 0:02:00]} Qc6 $132 {[%emt 0:00:05][%mdl 2048] [#] Black is not keeping still} 25. Rg1 {[%emt 0:04:16]} Re1+ {[%emt 0:00:16]} (25... Qxc5 26. Bg2) 26. Ka2 {[%emt 0:00:03]} Qxc5 {[%emt 0:00:09]} 27. Bh3 $1 {[%emt 0:01:47][%csl LRc8,LRe1][%cal Bf1h3,Bh3c8,Bc8b7,Bb7f3][%mdl 32]} Rxg1 {[%emt 0:06:43]} (27... Rce8 $11 {keeps the balance.} 28. Rxe1 Qa5+ 29. Kb3 Qxe1) 28. Bxc8 $16 {[%emt 0:00:13] Hoping for Rd8+. White stays focused until the end.} Qa5+ {[%emt 0:00:06]} 29. Kb3 {[%emt 0:03:36]} Re1 {[%emt 0:00:58]} (29... g6 $16 {was necessary.}) 30. Bxb7 $18 {[%emt 0:04:46]} Re6 {[%emt 0:02:23] ( -> ...Rb6+)} 31. c3 {[%emt 0:02:53]} g6 {[%emt 0:00:08]} 32. Bf3 {[%emt 0:04:31]} Kg7 {[%emt 0:00:05]} 33. Rd6 {[%emt 0:00:38]} Rxd6 {[%emt 0:01:53]} 34. Qxd6 {[%emt 0:00:05][%mdl 4096] Endgame KQB-KQN} Qb5+ {[%emt 0:00:06]} 35. Kc2 {[%emt 0:00:23]} Qf1 {[%emt 0:00:17]} 36. Qd1 {[%emt 0:00:56]} Qh3 {[%emt 0:00:19]} 37. Qe2 {[%emt 0:00:28]} h5 {[%emt 0:00:07]} (37... a5 $16 38. b3 h5) 38. b4 {[%emt 0:00:45]} Qf5+ {[%emt 0:00:12]} 39. Kb2 {[%emt 0:00:48]} h4 {[%emt 0:00:20]} 40. Bb7 {[%emt 0:02:40]} ({Not} 40. Qxa6 Qh3 $18) 40... a5 {[%emt 0:01:34]} 41. b5 {[%emt 0:01:01]} h3 {[%emt 0:01:00]} 42. Bc6 {[%emt 0:00:49]} Qc5 {[%emt 0:00:21]} 43. Kb3 {[%emt 0:00:55] Threatens to win with Qe5.} Qg1 {[%emt 0:00:50]} 44. Kc4 {[%emt 0:00:18]} a4 {[%emt 0:02:29]} 45. Kb4 {[%emt 0:00:16]} Qa1 {[%emt 0:00:05]} 46. Qc2 {[%emt 0:00:43]} a3 {[%emt 0:00:07]} 47. Kb3 {[%emt 0:00:04] Prevents Qb2+.} Ng4 {[%emt 0:00:13]} 48. c4 {[%emt 0:00:55]} Kh7 $2 {[%emt 0:01:51] [#]} (48... Ne3 {was worth a try.} 49. Qc3+ Qxc3+ 50. Kxc3 Nxc4) 49. Qc3 $1 {[%emt 0:00:49]} Qg1 {[%emt 0:01:43]} 50. Kxa3 {[%emt 0:00:17] Black must now prevent c5.} Nxh2 {[%emt 0:00:10]} 51. g4 {[%emt 0:00:41]} Nxg4 {[%emt 0:00:41]} 52. Qxh3+ {[%emt 0:00:05]} Kg8 {[%emt 0:00:03]} 53. Qf3 {[%emt 0:00:37]} Ne3 {[%emt 0:00:13]} 54. Qe4 {[%emt 0:00:34]} ({Less strong is} 54. Qe2 Qa1+ 55. Kb4 Qd4 $16) 54... Qc1+ {[%emt 0:01:59]} 55. Kb4 {[%emt 0:00:19]} Nf5 {[%emt 0:00:50]} 56. Qe8+ {[%emt 0:00:59]} Kg7 {[%emt 0:00:01]} 57. Qe5+ {[%emt 0:00:06]} f6 {[%emt 0:00:01]} 58. Qc7+ {[%emt 0:00:38]} Kh6 {[%emt 0:00:01] [#]} 59. Bd5 $1 {[%emt 0:00:23]} Ne3 {[%emt 0:00:46]} 60. b6 {[%emt 0:00:28]} Nc2+ {[%emt 0:00:21]} 61. Kb5 {[%emt 0:00:29] b7 is the strong threat.} Qa3 {[%emt 0:00:17]} 62. Qc5 {[%emt 0:00:41] Intending Qxa3 and mate.} Qb2+ {[%emt 0:00:10]} 63. Kc6 {[%emt 0:00:14]} Nb4+ {[%emt 0:00:20]} 64. Kd7 {[%emt 0:00:21]} Nd3 {[%emt 0:00:24]} 65. Qf8+ {[%emt 0:00:26] White mates.} Kh5 {[%emt 0:00:01]} 66. b7 {[%emt 0:00:15]} Qb6 {[%emt 0:00:40]} 67. b8=Q {[%emt 0:00:08]} Nc5+ {[%emt 0:00:03]} 68. Ke7 {[%emt 0:00:13] Weighted Error Value: White=0.04 (flawless) /Black=0.32} 1-0

[Event "Saint Louis Norm Congress-GM 2022"]
[Site "Saint Louis"]
[Date "2022.05.19"]
[Round "1.2"]
[White "Repka, Christopher"]
[Black "Belous, Vladimir"]
[Result "0-1"]
[ECO "E71"]
[WhiteElo "2524"]
[BlackElo "2525"]
[Annotator "TA"]
[PlyCount "72"]
[EventDate "2022.05.20"]
[EventType "tourn"]
[EventCountry "USA"]
[SourceTitle "playchess.com"]
[Source "ChessBase"]
[SourceQuality "1"]
[TimeControl "5400+30"]

{[%evp 13,72,31,38,23,31,34,54,25,84,58,100,42,54,41,68,35,42,38,43,44,42,44,46,36,101,61,80,56,64,48,95,102,97,99,95,54,60,67,157,162,202,208,175,72,63,82,70,0,0,-743,-643,-1148,-1100,-29986,-29987,-29987,-29988,-29988,-29989,-29998,-29999]} 1. d4 {[%emt 0:00:01]} Nf6 {[%emt 0:00:05]} 2. c4 {[%emt 0:00:03]} g6 {[%emt 0:00:04]} 3. Nc3 {[%emt 0:00:03]} Bg7 {[%emt 0:00:04]} 4. e4 {[%emt 0:00:05]} d6 {[%emt 0:00:04]} 5. h3 {[%emt 0:00:03]} O-O {[%emt 0:00:05]} 6. Be3 {[%emt 0:00:02]} e5 {[%emt 0:01:01]} 7. d5 {[%emt 0:00:04]} Na6 {[%emt 0:00:46]} 8. g4 {[%emt 0:00:16] E71: King's Indian: 4 e4 d6 5 h3.} Nc5 {[%emt 0:00:05]} 9. f3 {[%emt 0:00:03]} a5 {[%emt 0:01:41]} 10. Nge2 {[%emt 0:03:44] White is slightly better.} Bd7 {[%emt 0:02:18]} (10... c6 $11) 11. h4 {[%emt 0:00:04]} c6 {[%emt 0:01:58]} 12. h5 {[%emt 0:06:57]} (12. dxc6 $16 Bxc6 13. h5) 12... cxd5 $1 $14 {[%emt 0:02:36]} 13. cxd5 {[%emt 0:05:57]} b5 {[%emt 0:02:53]} 14. Ng3 $1 {[%emt 0:08:06]} a4 {[%emt 0:06:29]} 15. Qd2 {[%emt 0:00:54]} (15. Nxb5 $2 Bxb5 16. Bxc5 dxc5 $19) 15... Qa5 $1 {[%emt 0:01:01]} 16. h6 {[%emt 0:05:11]} Bh8 {[%emt 0:00:48] [#]} 17. Nf5 $1 $36 {[%emt 0:01:21][%mdl 2048] White has some pressure.} Bxf5 {[%emt 0:23:02]} (17... gxf5 $2 18. Bxc5 f4 19. Bxd6 $18) 18. gxf5 {[%emt 0:00:28] [#]} Rfb8 $146 {[%emt 0:03:23]} (18... b4 $14) ({Predecessor:} 18... b4 19. Nb5 Nfxe4 20. fxe4 Nxe4 21. Qg2 b3+ 22. Bd2 Nxd2 23. Qxd2 Qb6 24. a3 e4 {1-0 (57) Rost,D (2461)-Lanc,A (2422) ICCF email 2017}) 19. fxg6 $16 {[%emt 0:10:47]} fxg6 {[%emt 0:00:07]} 20. Nd1 {[%emt 0:02:31]} b4 {[%emt 0:01:51]} 21. Rc1 {[%emt 0:01:16]} Ncxe4 {[%emt 0:15:46]} 22. fxe4 {[%emt 0:03:14]} Nxe4 {[%emt 0:00:02]} 23. Qg2 {[%emt 0:14:27]} b3+ {[%emt 0:00:27]} 24. Bd2 {[%emt 0:04:28]} ({Weaker is} 24. Nc3 a3 25. axb3 (25. Qxe4 $2 axb2 26. Rg1 bxc1=Q+ 27. Bxc1 Qxc3+ $19) 25... Rxb3 $1 26. Qxe4 axb2 $19) 24... Nxd2 {[%emt 0:12:13]} 25. Qxd2 {[%emt 0:00:30]} Rb4 {[%emt 0:01:01]} (25... Qxd2+ $14 26. Kxd2 bxa2) 26. axb3 {[%emt 0:03:28]} axb3 {[%emt 0:06:34]} 27. Ne3 {[%emt 0:04:21]} Bf6 {[%emt 0:02:04] [#]} 28. Bh3 {[%emt 0:02:13]} (28. Nc4 $1 $18 {[%cal Rc4a5] and the rest is easy.} Qc5 29. Qf2) 28... Bg5 {[%emt 0:01:58] And now ...Bxe3 would win.} 29. Be6+ {[%emt 0:00:10]} Kh8 {[%emt 0:00:02]} 30. Rh3 {[%emt 0:01:32]} ({White should play} 30. Ke2 $1 $14 Qa6+ 31. Qd3 (31. Ke1 $2 Re4 $19)) 30... Rf8 $1 $11 {[%emt 0:01:23] Chess con chili.} 31. Qc3 $2 {[%emt 0:03:32][%mdl 8192] [#]} (31. Rc4 $11 Qa1+ 32. Qc1) 31... Qb6 $1 $19 {[%emt 0:01:41] White must now prevent ...Re4.} 32. Ke2 {[%emt 0:14:20] Qc7 is the strong threat.} Rbf4 {[%emt 0:00:41][%cal Bb4f4,Bf4f2,Bf2c2][%mdl 32]} ({But not} 32... Re4 $2 33. Rf1 Qa6+ 34. Qd3 Qxd3+ 35. Kxd3 Rxe3+ 36. Rxe3 Rxf1 37. Rh3 $19) 33. Rg1 {[%emt 0:05:13]} Rf2+ {[%emt 0:01:25] Black mates.} 34. Ke1 {[%emt 0:00:06] [#]} Rc2 $1 {[%emt 0:01:55][%mdl 576] Pin} 35. Rf1 {[%emt 0:01:33]} Rxf1+ {[%emt 0:00:15][%mdl 64] Remove Defender} 36. Nxf1 {[%emt 0:00:12]} Qf2+ {[%emt 0:00:05] Weighted Error Value: White=0.65/Black=0.12 (very precise)} 0-1

[Event "Saint Louis Norm Congress-GM 2022"]
[Site "Saint Louis"]
[Date "2022.05.19"]
[Round "1.3"]
[White "Park, Evan"]
[Black "Ruiz Castillo, Joshua Daniel"]
[Result "0-1"]
[ECO "B75"]
[WhiteElo "2431"]
[BlackElo "2473"]
[Annotator "TA"]
[PlyCount "75"]
[EventDate "2022.05.20"]
[EventType "tourn"]
[EventCountry "USA"]
[SourceTitle "playchess.com"]
[Source "ChessBase"]
[SourceQuality "1"]
[TimeControl "5400+30"]

{[%evp 14,75,58,54,64,51,64,54,76,58,52,48,50,53,61,60,66,40,47,41,48,43,53,28,24,18,18,15,20,14,16,0,16,0,0,0,0,0,0,0,0,0,0,0,0,0,0,0,0,-52,-57,-242,-83,-293,-290,-854,-863,-800,-746,-3324,-2141,-6682,-5697,-907]} 1. e4 {[%emt 0:00:04]} c5 {[%emt 0:00:09]} 2. Nf3 {[%emt 0:00:04]} d6 {[%emt 0:00:04]} 3. d4 {[%emt 0:00:05]} cxd4 {[%emt 0:00:05]} 4. Nxd4 {[%emt 0:00:05]} Nf6 {[%emt 0:00:05]} 5. Nc3 {[%emt 0:00:06]} g6 {[%emt 0:00:04]} 6. Be3 {[%emt 0:01:23]} Bg7 {[%emt 0:00:05]} 7. f3 {[%emt 0:00:04]} a6 {[%emt 0:00:05]} 8. Qd2 {[%emt 0:05:13]} h5 {[%emt 0:00:31] B75: Sicilian Dragon: Yugoslav Attack, Miscellaneous.} 9. Be2 {[%emt 0:05:04]} Nbd7 {[%emt 0:00:14]} 10. O-O {[%emt 0:05:11]} O-O {[%emt 0:00:07] White is slightly better.} 11. Nd5 {[%emt 0:03:54]} Nxd5 {[%emt 0:05:20]} 12. exd5 {[%emt 0:00:11]} Nf6 {[%emt 0:01:53]} 13. c4 {[%emt 0:00:41]} Qc7 {[%emt 0:01:54]} 14. Rac1 {[%emt 0:03:00]} Re8 {[%emt 0:16:46] [#]} 15. Rfe1 $146 {[%emt 0:16:11]} ({Predecessor:} 15. Rfd1 e6 16. dxe6 Bxe6 17. Bf1 Rac8 18. b3 Bd7 19. Nc2 d5 20. cxd5 Qe5 21. Bd4 {½-½ (72) Cavalcanti,B (2308)-Wellen,L (2237) ICCF email 2018}) 15... e5 {[%emt 0:11:30]} 16. dxe6 {[%emt 0:00:43]} Bxe6 {[%emt 0:00:15]} 17. Bf1 {[%emt 0:05:48]} Bd7 {[%emt 0:08:49]} 18. Bf2 {[%emt 0:04:41]} Rxe1 {[%emt 0:04:50]} 19. Rxe1 {[%emt 0:07:32]} Re8 {[%emt 0:00:36]} 20. Rxe8+ {[%emt 0:08:36]} Nxe8 {[%emt 0:01:56]} 21. b3 {[%emt 0:01:55]} Be5 {[%emt 0:06:55][%cal Od6d5]} 22. f4 {[%emt 0:11:03]} Bf6 {[%emt 0:00:12]} 23. Nc2 {[%emt 0:01:08]} Bg7 {[%emt 0:02:24]} 24. Bd4 {[%emt 0:02:34]} Bf5 {[%emt 0:05:22][%cal Bd7f5,Bf5e4,Be4c6][%mdl 32]} 25. Ne3 {[%emt 0:07:05]} Be4 {[%emt 0:01:35]} 26. Bxg7 {[%emt 0:00:08]} Nxg7 {[%emt 0:00:06]} 27. Qd4 {[%emt 0:01:12]} Bc6 {[%emt 0:07:08]} 28. g3 {[%emt 0:08:44]} Qa5 {[%emt 0:02:36]} 29. Qxd6 {[%emt 0:01:17]} Qxa2 {[%emt 0:00:05]} 30. Nd5 {[%emt 0:00:45]} Bxd5 {[%emt 0:01:20]} 31. cxd5 {[%emt 0:00:35]} (31. Qd8+ $11 Kh7 32. Qxd5) 31... Qxb3 $11 {[%emt 0:00:23][%mdl 4096] Endgame KQB-KQN} 32. Qc5 $2 {[%emt 0:00:53] [#]} ({White should play} 32. Qd8+ $1 $15 Kh7 33. Qd7) 32... h4 $2 {[%emt 0:01:43]} (32... Nf5 $19 {aiming for ...b5.} 33. Be2 Qb1+ 34. Kg2 Qe4+ 35. Bf3 Qe1) 33. Qc8+ $2 {[%emt 0:00:34]} (33. gxh4 $17 a5 34. d6 (34. Qc8+ $2 Kh7 $19)) 33... Kh7 $19 {[%emt 0:00:04]} 34. Bc4 $2 {[%emt 0:00:30]} (34. Qc4 Qe3+ 35. Kh1) 34... Qe3+ {[%emt 0:01:49] Black is clearly winning.} 35. Kg2 {[%emt 0:00:06]} hxg3 {[%emt 0:00:06]} 36. Qh3+ {[%emt 0:00:50]} Nh5 {[%emt 0:00:06] [#] Hoping for ...Qe4+.} 37. d6 {[%emt 0:00:34]} Qe4+ {[%emt 0:00:13]} 38. Kg1 {[%emt 0:00:04] Weighted Error Value: White=0.69/Black=0.07 (flawless)} 0-1

[Event "Saint Louis Norm Congress-GM 2022"]
[Site "Saint Louis"]
[Date "2022.05.19"]
[Round "1.4"]
[White "Matviishen, Viktor"]
[Black "Daggupati, Balaji"]
[Result "1/2-1/2"]
[ECO "D20"]
[WhiteElo "2517"]
[BlackElo "2486"]
[Annotator "TA"]
[PlyCount "133"]
[EventDate "2022.05.20"]
[EventType "tourn"]
[EventCountry "USA"]
[SourceTitle "playchess.com"]
[Source "ChessBase"]
[SourceQuality "1"]
[TimeControl "5400+30"]

{[%evp 16,133,22,9,6,7,9,8,8,1,-1,0,1,0,1,3,3,0,0,-12,0,0,33,0,31,12,30,0,0,0,0,0,0,0,0,0,0,0,0,-90,-91,-91,-85,-102,-5,-98,-91,-100,-100,-107,-107,-107,-107,-107,-107,-107,-107,-113,-85,-91,-88,-107,-81,-89,-81,-90,-22,-18,-3,-6,0,-8,-8,-8,-8,-8,0,0,8,-14,8,7,8,8,8,8,8,8,71,71,66,8,47,45,65,65,71,71,71,37,35,8,8,8,8,8,8,8,8,8,8,8,8,8,8,8,8,8,8,8]} 1. d4 {[%emt 0:00:02]} d5 {[%emt 0:00:06][%cal Bd7d5,Bd5c4][%mdl 32]} 2. c4 {[%emt 0:00:05]} dxc4 {[%emt 0:00:05]} 3. e4 {[%emt 0:00:05]} e5 {[%emt 0:00:06]} 4. Nf3 {[%emt 0:00:05]} Bb4+ {[%emt 0:00:06]} 5. Bd2 {[%emt 0:01:28]} Bxd2+ {[%emt 0:00:17]} 6. Nbxd2 {[%emt 0:00:10]} exd4 {[%emt 0:00:41]} 7. Bxc4 {[%emt 0:00:05]} Nc6 {[%emt 0:01:17] 7...Qf6 is not played anymore.} 8. O-O {[%emt 0:18:28]} Qf6 {[%emt 0:02:33]} 9. b4 {[%emt 0:18:19][%cal Oe4e5,Bb2b4,Bb4b5][%mdl 1056] White has compensation.} Nge7 {[%emt 0:12:51] D20: Queen's Gambit Accepted: 3 e3 and 3 e4.} 10. b5 {[%emt 0:20:51]} Na5 {[%emt 0:01:52]} 11. Qa4 {[%emt 0:02:02] [#]} b6 $146 {[%emt 0:01:33]} ({Predecessor:} 11... Nxc4 12. Qxc4 c6 13. Nxd4 Bd7 14. e5 Qg6 15. Rfe1 cxb5 16. Nxb5 O-O 17. Nd6 Bc6 {1-0 (44) Sethuraman,S (2624)-Quesada Perez,Y (2582) chess24.com INT 2019}) 12. Bd3 {[%emt 0:06:16]} O-O {[%emt 0:03:40][%cal Bh8f8,Bf8d8,Bd8d5][%mdl 32]} 13. e5 {[%emt 0:02:22]} Qh6 {[%emt 0:05:04]} 14. Be4 {[%emt 0:01:17]} Bb7 {[%emt 0:02:19]} 15. Bxb7 {[%emt 0:00:23]} Nxb7 {[%emt 0:00:06]} 16. Qxd4 {[%emt 0:05:05]} Rfd8 {[%emt 0:02:59]} (16... Rad8 $5 {[%cal Rd8d4]} 17. Qc4 c5 $11) 17. Qc4 {[%emt 0:00:36]} c6 {[%emt 0:09:39]} (17... Rxd2 $2 18. Nxd2 (18. Qxc7 Rdd8 $16) 18... Nc5 19. Nb3 $18) 18. Nb3 {[%emt 0:02:10]} Rd5 {[%emt 0:21:44]} 19. Nfd4 {[%emt 0:03:18][%cal Od4f5]} Nd8 {[%emt 0:07:06]} 20. Rac1 {[%emt 0:04:15][%cal Rb5c6]} cxb5 {[%emt 0:05:09]} 21. Qc7 {[%emt 0:01:04]} (21. Nxb5 $5 {[%cal Rb5c7]} Rxe5 22. f4 $14) 21... Kf8 {[%emt 0:01:00]} 22. Rcd1 $1 {[%emt 0:07:27][%cal Od4f5]} Qh5 {[%emt 0:12:19]} 23. f4 {[%emt 0:03:02][%cal Bf2f4,Bf4f5][%mdl 32]} Qg4 {[%emt 0:03:18]} 24. f5 {[%emt 0:01:35]} Rc8 {[%emt 0:02:30]} (24... Nxf5 $2 25. Nxf5 $1 Ne6 26. Qe7+ Kg8 27. Rxd5 $18) 25. Qxa7 {[%emt 0:00:01] aiming for h3.} Rc2 {[%emt 0:01:26]} 26. Nxc2 {[%emt 0:01:01] Dancing on a razor blade.} Rxd1 $40 {[%emt 0:00:03][%mdl 128] Black attacks.} 27. Ne1 {[%emt 0:01:56]} (27. Ne3 $11 Rxf1+ 28. Nxf1) 27... Nxf5 {[%emt 0:00:58]} 28. Qxb6 {[%emt 0:00:14]} Qe2 {[%emt 0:01:27][%csl LRa2,LRe1,LRe5] ( -> ...Ne3)} 29. Qf2 {[%emt 0:00:45] [#]} Qe3 {[%emt 0:01:39]} ({Better is} 29... Qxe5 $1 $17 {Black wants to play ...Ne3.} 30. Nf3 (30. Nd3 Rxf1+) 30... Qd5 31. Qc5+ Qxc5+ 32. Nxc5 Rxf1+ 33. Kxf1 Ke7) 30. g4 {[%emt 0:00:26]} (30. Nf3 $1 $11 {remains equal.} Rxf1+ 31. Kxf1) 30... Qxf2+ $17 {[%emt 0:00:35]} 31. Kxf2 {[%emt 0:00:01]} Nd4 {[%emt 0:00:17]} 32. Nxd4 {[%emt 0:00:56]} Rxd4 {[%emt 0:00:02][%mdl 4096] Endgame KRN-KRN} 33. Nf3 {[%emt 0:00:38]} Rxg4 {[%emt 0:00:08]} 34. Rb1 {[%emt 0:00:29]} Ra4 {[%emt 0:00:04]} 35. Rxb5 {[%emt 0:00:04]} Rxa2+ {[%emt 0:00:03]} 36. Kg3 {[%emt 0:00:05]} Ke7 {[%emt 0:00:16]} 37. h4 {[%emt 0:01:08]} Ra3 {[%emt 0:00:11]} 38. Rb6 {[%emt 0:00:22]} Rc3 {[%emt 0:00:18]} 39. Kf2 {[%emt 0:00:29]} Rc4 {[%emt 0:01:50]} 40. Ke3 {[%emt 0:00:43]} Rg4 {[%emt 0:02:02]} ({Black should try} 40... Ne6 $17 41. Kd3 Rc7) 41. Ra6 $11 {[%emt 0:00:26]} h6 {[%emt 0:00:48]} 42. Nd4 {[%emt 0:00:31]} g6 {[%emt 0:00:28]} 43. Ra7+ {[%emt 0:00:34]} Ke8 {[%emt 0:00:03][%cal Og4d4] Hoping for ...Rxd4!} 44. Nb5 {[%emt 0:00:39]} Kf8 {[%emt 0:00:53]} 45. Nd6 {[%emt 0:00:14]} Rxh4 {[%emt 0:00:34]} 46. Rd7 $1 {[%emt 0:00:01]} Nc6 {[%emt 0:00:30]} 47. Rxf7+ {[%emt 0:00:13]} Kg8 {[%emt 0:00:01]} 48. e6 {[%emt 0:00:25] Ne8 would kill now.} Rh5 {[%emt 0:00:59] Strongly threatening ...Re5+.} 49. Rc7 {[%emt 0:01:26]} Re5+ {[%emt 0:00:15]} 50. Kf4 {[%emt 0:00:28]} Rxe6 {[%emt 0:00:13]} 51. Rxc6 {[%emt 0:00:05] KRN-KR} Re7 {[%emt 0:00:11] [#]} (51... Kf8 $11) 52. Nc4 $1 $16 {[%emt 0:00:54]} Rf7+ {[%emt 0:00:41]} 53. Kg3 {[%emt 0:00:27]} (53. Ke4 $14) 53... Kh7 {[%emt 0:00:12]} 54. Ne5 {[%emt 0:00:05]} Re7 {[%emt 0:00:04]} 55. Kf4 {[%emt 0:00:06]} ({Of course not} 55. Rxg6 Rxe5 56. Rc6 Ra5 $11) ({Much weaker is} 55. Nxg6 Rg7 $11) 55... Rg7 {[%emt 0:00:35]} 56. Kg4 {[%emt 0:00:55]} Rg8 {[%emt 0:00:31]} 57. Rc7+ {[%emt 0:00:38]} Rg7 {[%emt 0:00:18]} 58. Nf7 {[%emt 0:00:26]} Kg8 {[%emt 0:00:07] The position is equal.} 59. Nxh6+ {[%emt 0:00:05]} Kh7 $1 {[%emt 0:00:06] [#]} 60. Rc1 {[%emt 0:00:20]} Ra7 {[%emt 0:00:42]} 61. Rh1 {[%emt 0:00:14]} Kg7 {[%emt 0:00:11]} 62. Kf4 {[%emt 0:01:11]} Ra4+ {[%emt 0:00:04]} 63. Ke3 {[%emt 0:00:15]} Ra3+ {[%emt 0:00:04]} 64. Kd2 {[%emt 0:00:19]} Ra2+ {[%emt 0:00:09]} 65. Kc3 {[%emt 0:00:11]} Rg2 {[%emt 0:00:17]} 66. Kd3 {[%emt 0:00:20]} Rg5 {[%emt 0:00:06]} 67. Ke4 {[%emt 0:00:18] Weighted Error Value: White=0.10 (very precise) /Black=0.13 (very precise)} 1/2-1/2